bitfinex-derivatives/quotes_BNBF0:USTF0_20250807
["timestamp","ask_amount","ask_price","bid_price","bid_amount"]
[1754575874094,0.83078036,774.02,773.19,0.86596124]
[1754575874295,0.83078036,774.01,773.18,0.86596124]
[1754575874495,0.83078036,774.0,773.18,0.86596124]
[1754575874691,0.83078036,773.99,773.18,0.86596124]
[1754575874895,0.83078036,773.98,773.18,0.86596124]
[1754575875190,0.86079609,774.05,773.18,0.86596124]
[1754575875396,0.83077681,774.04,773.18,0.86596124]
[1754575875595,0.83077681,774.03,773.18,0.86596124]
[1754575875794,0.83077681,774.02,773.18,0.86596124]
[1754575875994,0.83077681,774.01,773.18,0.86596124]
[1754575876193,0.83077681,774.0,773.18,0.86596124]
[1754575876399,0.83077681,773.99,773.16,0.86596124]
[1754575876595,0.83077681,773.98,773.15,0.86596124]
[1754575876798,0.83077681,773.97,773.15,0.86596124]
[1754575877100,0.83077681,773.96,773.15,0.86596124]
[1754575877299,0.86079609,774.04,773.15,0.86596124]
[1754575877496,0.83074634,774.03,773.15,0.86596124]
[1754575877696,0.83074634,774.02,773.15,0.86596124]
[1754575877897,0.83074634,774.02,772.97,1.37536348]
[1754575877898,0.86079609,774.06,773.17,0.86596124]
[1754575878100,0.83074642,774.05,773.17,0.86596124]
[1754575878295,0.83074642,774.04,773.17,0.86596124]
[1754575878499,0.83074642,774.03,773.17,0.86596124]
[1754575878698,0.83074642,774.02,773.18,0.86596124]
[1754575878900,0.83074642,774.01,773.19,0.86596124]
[1754575879198,0.83074642,774.0,773.19,0.86596124]
[1754575879404,0.83074642,773.99,773.19,0.86596124]
[1754575879597,0.83074642,773.98,773.19,0.86596124]
[1754575879800,0.83074642,773.97,773.18,0.86596124]
[1754575880004,0.83070604,773.96,773.17,0.86596124]
[1754575880205,0.83070604,773.96,773.0,1.15042796]
[1754575880206,1.112,774.05,773.22,0.86596124]
[1754575880501,0.83078025,774.04,773.22,0.86596124]
[1754575880805,1.112,774.05,773.21,0.86596124]
[1754575880806,0.83078025,774.03,773.21,0.86596124]
[1754575881006,0.83078025,774.02,773.24,0.86596124]
[1754575881206,1.112,774.05,773.24,0.86596124]
[1754575881407,0.83081203,774.04,773.24,0.86596124]
[1754575881607,0.83081203,774.03,773.24,0.86596124]
[1754575881907,1.112,774.05,773.24,0.86596124]
[1754575882103,0.83082156,774.04,773.25,0.86596124]
[1754575882305,1.112,774.05,773.25,0.86596124]
[1754575882606,0.83084995,774.04,773.25,0.86596124]
[1754575882806,1.112,774.05,773.25,0.86596124]
[1754575883009,1.112,774.05,773.29,0.86596124]
[1754575883209,1.112,774.05,773.3,0.86596124]
[1754575884205,1.112,774.05,773.29,0.86596124]
[1754575884406,1.112,774.05,773.12,1.15042796]
[1754575884407,1.112,774.05,773.3,0.86596124]
[1754575885707,1.112,774.05,773.28,0.86596124]
[1754575886709,1.112,774.05,773.09,1.15042796]
[1754575886710,1.112,774.05,773.29,0.86596124]
[1754575888108,1.112,774.05,773.3,0.86596124]
[1754575888614,1.112,774.05,773.37,0.86596124]
[1754575888909,1.112,774.05,773.4,0.86596124]
[1754575889212,1.112,774.05,773.41,0.86596124]
[1754575889414,1.112,774.05,773.44,0.86596124]
[1754575889614,1.112,774.05,773.45,0.86596124]
[1754575890011,1.112,774.05,773.44,0.86596124]
[1754575890912,1.112,774.05,773.25,0.86596124]
[1754575891111,1.112,774.05,772.97,0.22493552]
[1754575891112,1.112,774.05,773.24,0.86596124]
[1754575891312,1.112,774.05,773.25,0.86596124]
[1754575891513,1.112,774.05,773.27,0.86596124]
[1754575891912,1.112,774.05,772.97,0.22493552]
[1754575891913,1.112,774.05,773.32,0.86596124]
[1754575892714,1.112,774.05,773.33,0.86596124]
[1754575893113,1.112,774.05,773.32,0.86596124]
[1754575893412,1.112,774.05,773.33,0.86596124]
[1754575894212,1.112,774.05,773.32,0.86596124]
[1754575894414,1.112,774.05,773.33,0.86596124]
[1754575895117,1.112,774.05,773.32,0.86596124]
[1754575895611,1.112,774.05,773.33,0.86596124]
[1754575896217,1.112,774.05,773.32,0.86596124]
[1754575896516,0.86079609,774.6,773.32,0.86596124]
[1754575896715,0.83172634,774.59,773.32,0.86596124]
[1754575896915,0.83172634,774.58,773.32,0.86596124]
[1754575897113,0.83172634,774.57,773.32,0.86596124]
[1754575897318,0.83172634,774.56,773.29,0.86596124]
[1754575897516,0.83172634,774.55,773.29,0.86596124]
[1754575897714,0.83172634,774.54,773.29,0.86596124]
[1754575897917,0.83172634,774.53,773.3,0.86596124]
[1754575898117,0.83172634,774.52,773.3,0.86596124]
[1754575898317,0.83172634,774.51,773.3,0.86596124]
[1754575898520,0.83172634,774.5,773.3,0.86596124]
[1754575898818,0.83172634,774.49,773.3,0.86596124]
[1754575899016,0.83172634,774.48,773.3,0.86596124]
[1754575899317,0.83172634,774.47,773.3,0.86596124]
[1754575899519,0.83172634,774.46,773.3,0.86596124]
[1754575899721,0.83172634,774.45,773.3,0.86596124]
[1754575900022,0.86079609,774.3,773.47,0.86596124]
[1754575900318,0.83172634,774.29,773.47,0.86596124]
[1754575900516,0.86079609,774.27,773.43,0.86596124]
[1754575900718,0.83172634,774.26,773.43,0.86596124]
[1754575900917,0.83172634,774.25,773.43,0.86596124]
[1754575901121,0.83172634,774.24,773.43,0.86596124]
[1754575901418,0.83151749,774.23,773.43,0.86596124]
[1754575901618,0.83151749,774.22,773.43,0.86596124]
[1754575901816,0.83148669,774.21,773.43,0.86596124]
[1754575902117,0.86079609,774.29,773.43,0.86596124]
[1754575902319,0.83150437,774.28,773.43,0.86596124]
[1754575902517,0.83150437,774.27,773.43,0.86596124]
[1754575902721,0.83150437,774.26,773.43,0.86596124]
[1754575902921,0.83150437,774.25,773.43,0.86596124]
[1754575903222,0.83150437,774.24,773.43,0.86596124]
[1754575903418,0.83150437,774.23,773.43,0.86596124]
[1754575903717,0.83150437,774.22,773.42,0.86596124]
[1754575903922,0.83150437,774.21,773.42,0.86596124]
[1754575904122,0.83141664,774.2,773.42,0.86596124]
[1754575904322,0.86079609,774.28,773.42,0.86596124]
[1754575904620,0.83139489,774.27,773.43,0.86596124]
[1754575904822,0.83139489,774.26,773.43,0.86596124]
[1754575905020,0.83139489,774.25,773.43,0.86596124]
[1754575905222,0.83139489,774.24,773.43,0.86596124]
[1754575905425,0.83139489,774.23,773.43,0.86596124]
[1754575905720,0.83139489,774.22,773.43,0.86596124]
[1754575905921,0.83139489,774.21,773.43,0.86596124]
[1754575906221,0.83139489,774.2,773.43,0.86596124]
[1754575906420,0.86079609,774.28,773.43,0.86596124]
[1754575906625,0.83144786,774.27,773.43,0.86596124]
[1754575906824,0.83144786,774.26,773.43,0.86596124]
[1754575907024,0.83145842,774.25,773.44,0.86596124]
[1754575907225,0.83145842,774.24,773.43,0.86596124]
[1754575907521,0.86079609,774.3,773.43,0.86596124]
[1754575907725,0.83145428,774.29,773.43,0.86596124]
[1754575907925,0.83145428,774.28,773.45,0.86596124]
[1754575908225,0.83145428,774.27,773.47,0.86596124]
[1754575908427,0.83145428,774.26,773.47,0.86596124]
[1754575908726,0.83145428,774.25,773.46,0.86596124]
[1754575908922,0.83145428,774.24,773.46,0.86596124]
[1754575909123,0.86079609,774.33,773.46,0.86596124]
[1754575909425,1.69115764,774.32,773.46,0.86596124]
[1754575909621,0.83036155,774.31,773.46,0.86596124]
[1754575909820,0.83036155,774.3,773.45,0.86596124]
[1754575910021,0.83036155,774.29,773.45,0.86596124]
[1754575910222,0.83036155,774.28,773.45,0.86596124]
[1754575910522,0.86079609,774.33,773.42,0.86596124]
[1754575910822,0.83023161,774.32,773.42,0.86596124]
[1754575911123,0.83023161,774.31,773.42,0.86596124]
[1754575911322,0.83023161,774.3,773.42,0.86596124]
[1754575911625,0.83023161,774.29,773.42,0.86596124]
[1754575911828,0.83023161,774.28,773.42,0.86596124]
[1754575912028,0.83023161,774.27,773.42,0.86596124]
[1754575912225,0.83023161,774.26,773.42,0.86596124]
[1754575912428,0.83023161,774.25,773.42,0.86596124]
[1754575912628,0.83023161,774.24,773.42,0.86596124]
[1754575912826,0.86079609,774.34,773.42,0.86596124]
[1754575913031,0.83022512,774.33,773.42,0.86596124]
[1754575913327,0.83022512,774.32,773.42,0.86596124]
[1754575913632,0.83022512,774.31,773.42,0.86596124]
[1754575913826,0.83022512,774.3,773.42,0.86596124]
[1754575914125,0.83022512,774.29,773.42,0.86596124]
[1754575914331,0.83022512,774.28,773.42,0.86596124]
[1754575914529,0.83022512,774.27,773.42,0.86596124]
[1754575914731,0.83022512,774.26,773.42,0.86596124]
[1754575914932,0.83022512,774.25,773.43,0.86596124]
[1754575915129,0.83022512,774.24,773.43,0.86596124]
[1754575915331,0.83022512,774.23,773.45,0.86596124]
[1754575915530,0.83022512,774.22,773.45,0.86596124]
[1754575915729,0.83022512,774.21,773.44,0.86596124]
[1754575916033,0.83022512,774.2,773.44,0.86596124]
[1754575916232,0.83022512,774.19,773.44,0.86596124]
[1754575916529,0.83022512,774.18,773.44,0.86596124]
[1754575916732,0.83022512,774.17,773.44,0.86596124]
[1754575916932,0.83022512,774.16,773.39,0.86596124]
[1754575917231,0.83022512,774.15,773.39,0.86596124]
[1754575917429,0.83022512,774.14,773.39,0.86596124]
[1754575917732,0.83022512,774.13,773.39,0.86596124]
[1754575917932,0.83022512,774.12,773.39,0.86596124]
[1754575918133,0.83022512,774.11,773.36,0.86596124]
[1754575918330,0.83022512,774.1,773.34,0.86596124]
[1754575918532,0.83022512,774.09,773.34,0.86596124]
[1754575918733,0.83022512,774.08,773.34,0.86596124]
[1754575919035,0.83003856,774.07,773.34,0.86596124]
[1754575919235,0.83003856,774.06,773.34,0.86596124]
[1754575919437,0.83003856,774.05,773.28,0.86596124]
[1754575919734,0.83005533,774.04,773.28,0.86596124]
[1754575919937,0.86079609,774.24,773.28,0.86596124]
[1754575920137,0.86079609,774.19,773.22,0.86596124]
[1754575920338,0.83005533,774.18,773.22,0.86596124]
[1754575920638,0.83005533,774.17,773.22,0.86596124]
[1754575920837,0.83005533,774.16,773.22,0.86596124]
[1754575921038,0.83005533,774.15,773.22,0.86596124]
[1754575921238,0.83005533,774.14,773.22,0.86596124]
[1754575921537,0.83005533,774.13,773.22,0.86596124]
[1754575921833,0.83005533,774.12,773.22,0.86596124]
[1754575922141,0.83005533,774.11,773.22,0.86596124]
[1754575922337,0.83005533,774.1,773.22,0.86596124]
[1754575922535,0.83005533,774.09,773.22,0.86596124]
[1754575922835,0.83005533,774.08,773.22,0.86596124]
[1754575923039,0.83005533,774.07,773.22,0.86596124]
[1754575923336,0.83005533,774.06,773.22,0.86596124]
[1754575923537,0.83005533,774.05,773.22,0.86596124]
[1754575923736,0.83005533,774.04,773.22,0.86596124]
[1754575923936,0.83005533,774.03,773.0,1.15042796]
[1754575924142,0.83005533,774.02,773.22,0.86839494]
[1754575924435,0.86233327,774.19,773.22,0.86839494]
[1754575924636,0.86233327,774.19,772.97,0.22493552]
[1754575924637,0.86233327,774.17,773.2,0.86839494]
[1754575924837,0.86233327,774.17,772.97,0.22493552]
[1754575924838,1.69213432,774.16,773.19,0.86839494]
[1754575925038,0.82980105,774.15,773.19,0.86839494]
[1754575925237,0.82980105,774.14,773.18,0.86839494]
[1754575925437,0.82980105,774.13,773.17,0.86839494]
[1754575925638,0.82980105,774.12,773.17,0.86839494]
[1754575925838,0.82980105,774.11,773.17,0.86839494]
[1754575926041,0.82980105,774.1,773.17,0.86839494]
[1754575926240,0.82980105,774.09,773.17,0.86839494]
[1754575926440,1.69213432,774.08,773.22,0.86839494]
[1754575926641,0.82980105,774.07,773.22,0.86839494]
[1754575926839,0.82980105,774.06,773.22,0.86839494]
[1754575927043,0.82980105,774.05,773.2,0.86839494]
[1754575927343,0.82980105,774.04,773.2,0.86839494]
[1754575927638,0.82980105,774.03,773.19,0.86839494]
[1754575927842,0.86233327,774.08,773.19,0.86839494]
[1754575928039,0.82963246,774.07,773.19,0.86839494]
[1754575928238,0.82963246,774.06,773.19,0.86839494]
[1754575928543,0.829636,774.05,773.19,0.86839494]
[1754575928742,0.829636,774.04,773.19,0.86839494]
[1754575928937,0.829636,774.03,773.19,0.86839494]
[1754575929141,0.829636,774.02,773.19,0.86839494]
[1754575929340,0.829636,774.01,773.19,0.86839494]
[1754575929543,0.86233327,774.08,773.19,0.86839494]
[1754575929742,0.82964295,774.07,773.19,0.86839494]
[1754575929939,0.82964295,774.06,773.19,0.86839494]
[1754575930139,0.82964295,774.05,773.19,0.86839494]
[1754575930339,0.82964295,774.04,773.19,0.86839494]
[1754575930640,0.82964295,774.03,773.19,0.86839494]
[1754575930839,0.82964295,774.02,773.17,0.86839494]
[1754575931039,0.86233327,774.1,773.17,0.86839494]
[1754575931240,0.82961824,774.09,773.17,0.86839494]
[1754575931440,0.82961824,774.08,773.17,0.86839494]
[1754575931743,0.82961824,774.07,773.17,0.86839494]
[1754575931944,0.82961824,774.06,773.17,0.86839494]
[1754575932145,0.82961824,774.05,773.17,0.86839494]
[1754575932345,0.82961824,774.04,773.17,0.86839494]
[1754575932646,0.82961824,774.03,773.15,0.86839494]
[1754575932946,0.82961824,774.02,773.16,0.86839494]
[1754575933146,0.86233327,774.12,773.16,0.86839494]
[1754575933345,0.82956799,774.11,773.16,0.86839494]
[1754575933544,1.15769839,774.34,773.16,0.86839494]
[1754575933545,0.82956799,774.1,773.16,0.86839494]
[1754575933840,0.82956799,774.09,773.16,0.86839494]
[1754575934043,0.82956799,774.08,773.16,0.86839494]
[1754575934241,0.82956799,774.07,773.16,0.86839494]
[1754575934545,0.82956799,774.06,773.16,0.86839494]
[1754575934740,0.82956799,774.05,773.16,0.86839494]
[1754575934944,0.82956799,774.04,773.18,0.86839494]
[1754575935141,0.82956799,774.03,773.17,0.86839494]
[1754575935342,0.86233327,774.13,773.17,0.86839494]
[1754575935543,0.82964146,774.12,773.13,0.86839494]
[1754575935743,0.82964146,774.11,773.17,0.86839494]
[1754575935947,0.86233327,774.24,773.16,0.86839494]
[1754575936146,0.8297124,774.23,773.16,0.86839494]
[1754575936344,0.86233327,774.24,772.97,0.22493552]
[1754575936345,1.69204567,774.22,773.18,0.86839494]
[1754575936648,0.8297124,774.21,773.24,0.86839494]
[1754575936948,0.8298499,774.2,773.29,0.86839494]
[1754575937247,0.8298499,774.19,773.3,0.86839494]
[1754575937448,0.86233327,774.31,773.3,0.86839494]
[1754575937748,0.82994318,774.3,773.3,0.86839494]
[1754575938048,0.86233327,774.24,773.34,0.86839494]
[1754575938349,0.82994318,774.23,773.35,0.86839494]
[1754575938549,0.82994318,774.22,773.35,0.86839494]
[1754575938743,0.82994318,774.21,773.35,0.86839494]
[1754575938947,0.82994318,774.2,773.37,0.86839494]
[1754575939247,0.82994318,774.19,773.37,0.86839494]
[1754575939447,0.82994318,774.18,773.37,0.86839494]
[1754575939747,0.82994318,774.17,773.37,0.86839494]
[1754575939945,0.86233327,774.26,773.37,0.86839494]
[1754575940144,0.83200826,774.25,773.37,0.86839494]
[1754575940344,0.83200826,774.24,773.37,0.86839494]
[1754575940547,0.83200826,774.23,773.37,0.86839494]
[1754575940745,0.86233327,774.18,773.41,0.86839494]
[1754575940949,0.83200826,774.17,773.41,0.86839494]
[1754575941450,0.83200826,774.16,773.4,0.86839494]
[1754575941649,0.83200826,774.15,773.4,0.86839494]
[1754575941846,0.83200826,774.14,773.4,0.86839494]
[1754575942048,0.83200826,774.13,773.35,0.86839494]
[1754575942249,0.83200826,774.12,773.35,0.86839494]
[1754575942551,0.83200826,774.11,773.35,0.86839494]
[1754575942750,0.83200826,774.1,773.35,0.86839494]
[1754575942947,0.83200826,774.09,773.35,0.86839494]
[1754575943147,0.86233327,774.16,773.35,0.86839494]
[1754575943347,0.83205912,774.15,773.35,0.86839494]
[1754575943551,0.83205912,774.14,773.29,0.86839494]
[1754575943851,0.86233327,774.11,773.29,0.86839494]
[1754575944048,0.83205912,774.1,773.29,0.86839494]
[1754575944252,0.83205912,774.09,773.3,0.86839494]
[1754575944453,0.83205912,774.08,773.3,0.86839494]
[1754575944653,0.83205912,774.07,773.3,0.86839494]
[1754575944950,0.83205912,774.06,773.3,0.86839494]
[1754575945155,0.83205912,774.05,773.3,0.86839494]
[1754575945454,0.83205912,774.04,773.3,0.86839494]
[1754575945651,0.86233327,774.11,773.31,0.86839494]
[1754575945855,0.86233327,774.12,773.31,0.86839494]
[1754575946156,0.83195522,774.11,773.3,0.86839494]
[1754575946454,0.83195522,774.1,773.31,0.86839494]
[1754575946651,0.83195522,774.09,773.29,0.86839494]
[1754575946852,0.83195522,774.08,773.29,0.86839494]
[1754575947052,0.83195522,774.07,773.29,0.86839494]
[1754575947253,0.83195522,774.06,773.29,0.86839494]
[1754575947452,0.86233327,774.13,773.29,0.86839494]
[1754575947749,0.86233327,774.1,773.28,0.86839494]
[1754575947949,0.83194329,774.09,773.28,0.86839494]
[1754575948150,0.83194329,774.08,773.28,0.86839494]
[1754575948351,0.83194329,774.07,773.27,0.86839494]
[1754575948553,0.83194329,774.06,773.27,0.86839494]
[1754575948752,0.83194329,774.05,773.22,0.86839494]
[1754575949051,0.83177097,774.04,773.22,0.86839494]
[1754575949256,1.69410424,774.03,773.21,0.86839494]
[1754575949552,0.83177097,774.02,773.13,0.86839494]
[1754575949757,0.83177097,774.01,773.13,0.86839494]
[1754575949954,0.83177097,774.0,773.15,0.86839494]
[1754575950156,0.83177097,773.99,773.14,0.86839494]
[1754575950452,0.83177097,773.98,773.14,0.86839494]
[1754575950757,0.83177097,773.97,773.14,0.86839494]
[1754575950953,0.83177097,773.96,773.15,0.86839494]
[1754575951157,0.839,774.0,773.16,0.86839494]
[1754575951354,0.83158737,773.99,773.16,0.86839494]
[1754575951654,0.83158737,773.98,773.15,0.86839494]
[1754575951857,0.83158737,773.97,773.16,0.86839494]
[1754575952061,0.83158737,773.96,773.16,0.86839494]
[1754575952264,0.839,774.0,773.14,0.86839494]
[1754575952462,0.83157683,773.99,773.13,0.86839494]
[1754575952660,0.83157683,773.98,773.13,0.86839494]
[1754575952964,0.83157683,773.97,773.13,0.86839494]
[1754575953162,0.83157683,773.96,773.16,0.86839494]
[1754575953365,0.83157683,773.95,773.15,0.86839494]
[1754575953561,0.839,774.0,773.15,0.86839494]
[1754575953866,0.83156799,773.99,773.16,0.86839494]
[1754575954063,0.83156799,773.98,773.17,0.86839494]
[1754575954366,0.83156799,773.97,773.17,0.86839494]
[1754575954563,0.839,774.0,773.18,0.86839494]
[1754575954765,0.83162265,773.99,773.17,0.86839494]
[1754575955266,0.83161097,773.98,773.16,0.86839494]
[1754575955465,0.83161097,773.97,773.16,0.86839494]
[1754575955663,0.8316378,773.96,773.16,0.86839494]
[1754575955862,0.839,774.0,773.16,0.86839494]
[1754575956065,0.83163783,773.99,773.17,0.86839494]
[1754575956268,0.83163783,773.98,773.17,0.86839494]
[1754575956465,0.83163783,773.97,773.17,0.86839494]
[1754575956668,0.839,774.0,773.26,0.86839494]
[1754575956869,0.839,774.0,773.32,0.86839494]
[1754575957068,0.839,774.0,772.97,1.95057747]
[1754575957069,0.839,774.0,773.36,0.86839494]
[1754575957370,0.839,774.0,773.35,0.86839494]
[1754575957766,0.839,774.0,773.36,0.86839494]
[1754575958671,0.839,774.0,773.35,0.86839494]
[1754575958866,0.839,774.0,773.41,0.86839494]
[1754575959270,0.839,774.0,773.42,0.86839494]
[1754575959469,0.839,774.0,773.44,0.86839494]
[1754575959968,0.839,774.0,773.47,0.86839494]
[1754575964373,0.839,774.0,773.48,0.86839494]
[1754575965577,0.839,774.0,773.47,0.86839494]
[1754575967079,0.839,774.0,773.48,0.86839494]
[1754575967478,0.839,774.0,773.47,0.86839494]
[1754575967678,0.839,774.0,773.46,0.86839494]
[1754575967879,0.839,774.0,773.45,0.86839494]
[1754575968076,0.839,774.0,773.46,0.86839494]
[1754575968375,0.839,774.0,773.44,0.86839494]
[1754575969681,0.839,774.0,773.43,0.86839494]
[1754575969977,0.839,774.0,773.42,0.86839494]
[1754575970578,0.839,774.0,773.43,0.86839494]
[1754575975281,0.839,774.0,773.44,0.86839494]
[1754575975687,0.839,774.0,773.38,0.86839494]
[1754575976087,0.839,774.0,773.29,0.86839494]
[1754575979287,0.86233327,774.31,773.29,0.86839494]
[1754575979487,0.82931699,774.3,773.29,0.86839494]
[1754575979783,0.82931699,774.29,773.29,0.86839494]
[1754575980588,1.69165026,774.29,773.28,0.86839494]
[1754575980887,0.86233327,774.26,773.24,0.86839494]
[1754575981191,0.86233327,774.23,773.21,0.86839494]
[1754575981391,1.69165026,774.22,773.21,0.86839494]
[1754575981590,0.82931699,774.21,773.21,0.86839494]
[1754575981792,0.86233327,774.2,773.19,0.86839494]
[1754575981990,0.82934903,774.19,773.19,0.86839494]
[1754575982187,0.82934903,774.18,773.19,0.86839494]
[1754575982488,1.6916823,774.17,773.21,0.86839494]
[1754575982686,0.82934903,774.16,773.21,0.86839494]
[1754575982891,0.86233327,774.1,773.25,0.86839494]
[1754575983089,1.6916823,774.09,773.26,0.86839494]
[1754575983290,0.22481927,774.58,772.97,0.22493552]
[1754575983291,0.82934903,774.08,773.23,0.86839494]
[1754575983488,0.82934903,774.07,773.21,0.86839494]
[1754575983787,0.82934903,774.06,773.21,0.86839494]
[1754575983992,0.82934903,774.05,773.18,0.86839494]
[1754575984288,0.86233327,773.99,773.1,0.86839494]
[1754575984792,0.86233327,773.99,773.09,0.86839494]
[1754575985193,0.82917457,773.98,773.09,0.86839494]
[1754575985394,0.82917457,773.97,773.09,0.86839494]
[1754575985595,0.82917457,773.96,773.09,0.86839494]
[1754575985895,0.82917457,773.95,773.08,0.86839494]
[1754575986191,0.86233327,773.93,773.02,0.86839494]
[1754575986390,0.82917457,773.92,773.01,0.86839494]
[1754575986588,0.82917457,773.91,773.01,0.86839494]
[1754575986793,0.86233327,773.94,773.01,0.86839494]
[1754575987091,0.82901448,773.93,773.01,0.86839494]
[1754575987292,0.86233327,773.94,773.01,0.86839494]
[1754575987293,0.82901448,773.92,773.01,0.86839494]
[1754575987490,0.82901448,773.91,773.01,0.86839494]
[1754575987791,0.82901448,773.91,772.97,0.22493552]
[1754575987792,0.82878385,773.9,773.03,0.86839494]
[1754575987995,0.82878385,773.89,773.03,0.86839494]
[1754575988292,0.82878385,773.88,773.03,0.86839494]
[1754575988496,0.82878385,773.87,773.02,0.86839494]
[1754575988795,0.82878385,773.86,773.03,0.86839494]
[1754575988993,0.82878385,773.85,773.03,0.86839494]
[1754575989191,0.82878385,773.84,773.03,0.86839494]
[1754575989393,0.82878385,773.83,773.04,0.86839494]
[1754575989591,0.82878385,773.82,773.04,0.86839494]
[1754575989796,0.86233327,773.9,773.04,0.86839494]
[1754575990099,0.819,773.81,773.04,0.86839494]
[1754575990497,0.819,773.81,773.01,0.86839494]
[1754575991394,0.819,773.81,772.97,0.22493552]
[1754575996397,0.8280839,773.8,772.97,0.22493552]
[1754575996605,0.8280839,773.79,772.97,0.22493552]
[1754575996904,0.8280839,773.78,772.97,0.22493552]
[1754575997200,0.8280839,773.77,772.97,0.22493552]
[1754575997400,0.8280839,773.76,772.97,0.22493552]
[1754575997598,0.819,773.81,772.97,0.22493552]
[1754575997802,0.82810847,773.8,772.97,0.22493552]
[1754575997997,0.82810847,773.79,772.97,0.22493552]
[1754575998200,0.82810847,773.78,772.97,0.22493552]
[1754575998404,0.82810847,773.77,772.97,0.22493552]
[1754575998703,0.82810847,773.76,772.97,0.22493552]
[1754575998899,0.82810847,773.75,772.97,0.22493552]
[1754575999099,0.819,773.81,772.97,0.22493552]
[1754575999303,0.82900662,773.8,772.97,0.22493552]
[1754575999598,0.82900662,773.79,772.97,0.22493552]
[1754575999799,0.82900662,773.78,772.97,0.22493552]
[1754576000106,0.82891355,773.77,772.97,0.22493552]
[1754576000299,0.82891355,773.76,772.97,0.22493552]
[1754576000504,0.819,773.81,772.97,0.22493552]
[1754576000703,0.82876218,773.8,772.97,0.22493552]
[1754576000904,0.82876218,773.79,772.97,0.22493552]
[1754576001104,0.82876218,773.78,772.97,0.22493552]
[1754576001300,0.82876218,773.77,772.97,0.22493552]
[1754576001605,0.82876218,773.76,772.97,0.22493552]
[1754576001799,0.819,773.81,772.97,0.22493552]
[1754576001999,0.82862337,773.8,772.97,0.22493552]
[1754576002301,0.82862337,773.79,772.97,0.22493552]
[1754576002499,0.82862337,773.78,772.97,0.22493552]
[1754576002701,0.82862337,773.77,772.97,0.22493552]
[1754576002905,0.82862337,773.76,772.97,0.22493552]
[1754576003105,0.82862337,773.75,772.97,0.22493552]
[1754576003302,0.82862337,773.74,772.97,0.22493552]
[1754576003502,0.819,773.81,772.97,0.22493552]
[1754576003805,0.8282856,773.8,772.97,0.22493552]
[1754576004004,0.8282856,773.79,772.97,0.22493552]
[1754576004204,0.8282856,773.78,772.97,0.22493552]
[1754576004403,0.8282856,773.77,772.97,0.22493552]
[1754576004603,0.8282856,773.76,772.97,0.22493552]
[1754576004804,0.819,773.81,772.97,0.22493552]
[1754576004805,0.8282856,773.75,772.97,0.22493552]
[1754576005004,0.8282856,773.74,772.97,0.22493552]
[1754576005301,0.8282856,773.73,772.97,0.22493552]
[1754576005506,0.819,773.81,772.97,0.22493552]
[1754576005705,0.8280596,773.8,772.97,0.22493552]
[1754576005901,0.8280596,773.79,772.97,0.22493552]
[1754576006106,0.8280596,773.78,772.97,0.22493552]
[1754576006302,0.819,773.81,772.97,0.22493552]
[1754576006303,0.8280596,773.77,772.97,0.22493552]
[1754576006607,0.8280596,773.76,772.97,0.22493552]
[1754576006807,0.82786403,773.75,772.97,0.22493552]
[1754576007008,0.82786403,773.74,772.97,0.22493552]
[1754576007205,0.85979453,774.01,772.97,0.22493552]
[1754576007404,0.82771615,774.0,772.97,0.22493552]
[1754576007608,0.82771615,773.99,772.97,0.22493552]
[1754576007805,0.82771615,773.98,772.97,0.22493552]
[1754576008004,0.82771615,773.97,772.97,0.22493552]
[1754576008208,0.82771615,773.96,772.97,0.22493552]
[1754576008406,0.82771615,773.95,772.97,0.22493552]
[1754576008610,0.82771615,773.94,772.97,0.22493552]
[1754576008809,0.82771615,773.93,772.97,0.22493552]
[1754576009008,0.71,773.95,772.97,0.22493552]
[1754576009212,0.82778671,773.94,772.97,0.22493552]
[1754576009512,0.82778671,773.93,772.97,0.22493552]
[1754576009708,0.82778671,773.92,772.97,0.22493552]
[1754576009912,0.82778671,773.91,772.97,0.22493552]
[1754576010113,0.82778671,773.9,772.97,0.22493552]
[1754576010409,0.82778671,773.89,772.97,0.22493552]
[1754576010608,0.82778671,773.88,772.97,0.22493552]
[1754576010809,0.82778671,773.87,772.97,0.22493552]
[1754576011008,0.82778671,773.86,772.97,0.22493552]
[1754576011312,0.82778671,773.85,772.97,0.22493552]
[1754576011614,0.82778671,773.84,772.97,0.22493552]
[1754576011813,0.82778671,773.83,772.97,0.22493552]
[1754576012108,0.82778671,773.82,772.97,0.22493552]
[1754576012313,0.82778671,773.81,772.97,0.22493552]
[1754576012510,0.82778671,773.8,772.97,0.22493552]
[1754576012712,0.82778671,773.79,772.97,0.22493552]
[1754576012911,0.82778671,773.78,772.97,0.22493552]
[1754576013110,0.82778671,773.77,772.97,0.22493552]
[1754576013413,0.82778671,773.76,772.97,0.22493552]
[1754576013609,0.82778671,773.75,772.97,0.22493552]
[1754576013813,0.82778671,773.74,772.97,0.22493552]
[1754576014115,0.71,773.95,772.97,0.22493552]
[1754576014313,0.82716426,773.94,772.97,0.22493552]
[1754576014509,0.82716426,773.93,772.97,0.22493552]